fUSD/lending_fUSD_20240720
["ID","MTS","AMOUNT","RATE_DAILY","PERIOD"]
[332699047,1721454655699,-2100.12,0.00032876,14]
[332699048,1721454655708,-1501.2,0.00032876,14]
[332699049,1721454655718,-500.0,0.00032876,14]
[332699050,1721454655728,-500.0,0.00032876,14]
[332699051,1721454655738,-1938.55,0.00032876,14]
[332699052,1721454655748,-500.0,0.00032876,14]
[332699053,1721454655758,-500.0,0.00032876,14]
[332699054,1721454655769,-500.0,0.00032876,14]
[332699055,1721454655780,-2226.11,0.00032876,14]
[332699056,1721454655789,-500.0,0.00032876,14]
[332699057,1721454655799,-1032.15,0.00032876,14]
[332699058,1721454655809,-521.36,0.00032876,14]
[332699059,1721454655819,-1134.15,0.00032876,14]
[332699060,1721454655830,-2533.76,0.00032876,14]
[332699061,1721454655839,-500.0,0.00032876,14]
[332699062,1721454655849,-500.0,0.00032876,14]
[332699063,1721454655858,-1135.66,0.00032876,14]
[332699064,1721454655867,-500.0,0.00032876,14]
[332699065,1721454655876,-1145.69,0.00032876,14]
[332699066,1721454655886,-500.0,0.00032876,14]
[332699067,1721454655895,-2293.46,0.00032876,14]
[332699068,1721454655904,-500.0,0.00032876,14]
[332699069,1721454655914,-2614.44,0.00032876,14]
[332699070,1721454655923,-500.0,0.00032876,14]
[332699071,1721454655932,-1398.34,0.00032876,14]
[332699072,1721454655941,-500.0,0.00032876,14]
[332699073,1721454655951,-500.0,0.00032876,14]
[332699074,1721454655960,-500.0,0.00032876,14]
[332699075,1721454655970,-500.0,0.00032876,14]
[332699076,1721454655979,-500.0,0.00032876,14]
[332699077,1721454655988,-1000.0,0.00032876,14]
[332699078,1721454655997,-500.0,0.00032876,14]
[332699079,1721454656006,-737.88,0.00032876,14]
[332699080,1721454656015,-500.0,0.00032876,14]
[332699081,1721454656025,-500.0,0.00032876,14]
[332699082,1721454656034,-500.0,0.00032876,14]
[332699083,1721454656043,-5859.34,0.00032876,14]
[332699084,1721454656053,-500.0,0.00032876,5]
[332699085,1721454656062,-500.0,0.00032876,14]
[332699086,1721454656071,-500.0,0.00032876,14]
[332699087,1721454656080,-1642.7,0.00032876,14]
[332699088,1721454656090,-1741.27,0.00032876,14]
[332699089,1721454656100,-500.0,0.00032876,14]
[332699090,1721454656110,-500.0,0.00032876,14]
[332699091,1721454656119,-500.0,0.00032876,14]
[332699092,1721454656128,-2773.2,0.00032876,14]
[332699093,1721454656137,-3787.44,0.00032876,14]
[332699094,1721454656147,-500.0,0.00032876,14]
[332699095,1721454656158,-1211.76,0.00032876,14]
[332699096,1721454656167,-500.0,0.00032876,14]
[332699097,1721454656177,-500.0,0.00032876,14]
[332699098,1721454656186,-500.0,0.00032876,14]
[332699099,1721454656195,-500.0,0.00032876,14]
[332699100,1721454656205,-1228.2,0.00032876,14]
[332699101,1721454656214,-500.0,0.00032876,14]
[332699102,1721454656224,-3015.83,0.00032876,14]
[332699103,1721454656233,-500.0,0.00032876,14]
[332699104,1721454656242,-500.0,0.00032876,14]
[332699105,1721454656251,-500.0,0.00032876,14]
[332699106,1721454656261,-500.0,0.00032876,14]
[332699107,1721454656270,-1839.95,0.00032876,14]
[332699108,1721454656280,-500.0,0.00032876,14]
[332699109,1721454656290,-4715.96,0.00032876,14]
[332699110,1721454656299,-1400.64,0.00032876,14]
[332699111,1721454656315,-500.0,0.00032876,14]
[332699112,1721454656326,-500.0,0.00032876,14]
[332699113,1721454656336,-1206.1,0.00032876,14]
[332699114,1721454656345,-4676.71,0.00032876,14]
[332699115,1721454656357,-500.0,0.00032876,14]
[332699116,1721454656366,-500.0,0.00032876,14]
[332699117,1721454656375,-500.0,0.00032876,14]
[332699118,1721454656385,-1817.98,0.00032876,14]
[332699119,1721454656396,-2336.53,0.00032876,14]
[332699120,1721454656405,-500.0,0.00032876,14]
[332699121,1721454656415,-500.0,0.00032876,14]
[332699122,1721454656423,-548.56,0.00032876,14]
[332699123,1721454656433,-973.73,0.00032876,14]
[332699124,1721454656442,-500.0,0.00032876,14]
[332699125,1721454656451,-500.0,0.00032876,14]
[332699126,1721454656461,-500.0,0.00032876,14]
[332699127,1721454656470,-1677.83,0.00032876,14]
[332699128,1721454656480,-506.8189971,0.00032876,14]
[332699129,1721454656489,-500.0,0.00032876,14]
[332699130,1721454656499,-854.29,0.00032876,14]
[332699131,1721454656508,-6108.97,0.00032876,14]
[332699132,1721454656518,-2035.71,0.00032876,14]
[332699133,1721454656528,-591.88882794,0.00032876,14]
[332699134,1721454656538,-847.09,0.00032876,14]
[332699135,1721454656547,-500.0,0.00032876,14]
[332699136,1721454656557,-1731.46,0.00032876,14]
[332699137,1721454656566,-1464.29,0.00032876,14]
[332699138,1721454656575,-500.0,0.00032876,14]
[332699139,1721454656585,-500.0,0.00032876,14]
[332699140,1721454656595,-508.53013675,0.00032876,14]
[332699141,1721454656604,-1151.43,0.00032876,14]
[332699142,1721454656614,-3051.07,0.00032876,14]
[332699143,1721454656624,-500.0,0.00032876,14]
[332699144,1721454656634,-493.23006124,0.00032876,14]
[332699145,1721454656644,-500.0,0.00032876,14]
[332699146,1721454656655,-500.0,0.00032876,14]
[332699147,1721454656666,-500.0,0.00032876,14]
[332699148,1721454656676,-1584.59,0.00032876,14]
[332699149,1721454656686,-500.0,0.00032876,14]
[332699150,1721454656696,-500.0,0.00032876,14]
[332699151,1721454656706,-500.0,0.00032876,14]
[332699152,1721454656818,-500.0,0.00032876,14]
[332699153,1721454656836,-500.0,0.00032876,14]
[332699154,1721454656845,-500.0,0.00032876,14]
[332699155,1721454656855,-849.3,0.00032876,14]
[332699156,1721454656864,-2302.64,0.00032876,14]
[332699157,1721454656874,-500.0,0.00032876,14]
[332699158,1721454656883,-500.0,0.00032876,14]
[332699159,1721454656892,-1810.06,0.00032876,14]
[332699160,1721454656901,-500.0,0.00032876,14]
[332699161,1721454656910,-542.31031691,0.00032876,14]
[332699162,1721454656920,-1313.44,0.00032876,14]
[332699163,1721454656929,-1741.63,0.00032876,14]
[332699164,1721454656939,-1800.63,0.00032876,14]
[332699165,1721454656948,-500.0,0.00032876,14]
[332699166,1721454656959,-1714.61,0.00032876,14]
[332699167,1721454656969,-500.0,0.00032876,14]
[332699168,1721454656979,-765.66,0.00032876,14]
[332699169,1721454656989,-501.97557877,0.00032876,14]
[332699170,1721454656999,-590.13,0.00032876,14]
[332699171,1721454657008,-500.0,0.00032876,14]
[332699172,1721454657018,-500.0,0.00032876,14]
[332699173,1721454657029,-500.35441941,0.00032876,14]
[332699174,1721454657039,-2127.68,0.00032876,14]
[332699175,1721454657049,-500.0,0.00032876,14]
[332699176,1721454657058,-500.3783804,0.00032876,14]
[332699177,1721454657069,-1128.24,0.00032876,14]
[332699178,1721454657078,-2564.99,0.00032876,14]
[332699179,1721454657089,-500.0,0.00032876,14]
[332699180,1721454657099,-500.52659147,0.00032876,14]
[332699181,1721454657108,-500.0,0.00032876,14]
[332699182,1721454657118,-1400.32,0.00032876,14]
[332699183,1721454657128,-4037.22,0.00032876,14]
[332699184,1721454657138,-500.0,0.00032876,14]
[332699185,1721454657149,-530.48609305,0.00032876,14]
[332699186,1721454657158,-3316.95,0.00032876,14]
[332699187,1721454657168,-430.31821842,0.00032876,14]
[332699188,1721454657178,-2915.67,0.00032876,14]
[332699189,1721454657188,-5225.32,0.00032876,14]
[332699190,1721454657198,-520.45,0.00032876,14]
[332699191,1721454657208,-500.0,0.00032876,14]
[332699192,1721454657219,-1197.24,0.00032876,14]
[332699193,1721454657230,-500.0,0.00032876,14]
[332699194,1721454657239,-500.0,0.00032876,14]
[332699195,1721454657249,-500.0,0.00032876,14]
[332699196,1721454657258,-500.0,0.00032876,14]
[332699197,1721454657267,-500.35605643,0.00032876,14]
[332699198,1721454657277,-1278.14,0.00032876,14]
[332699199,1721454657286,-627.4,0.00032876,14]
[332699200,1721454657295,-502.15921315,0.00032876,14]
[332699201,1721454657304,-1021.45,0.00032876,14]
[332699202,1721454657317,-500.0,0.00032876,14]
[332699203,1721454657326,-3741.74,0.00032876,14]
[332699204,1721454657335,-1542.96,0.00032876,14]
[332699205,1721454657345,-1183.46,0.00032876,14]
[332699206,1721454657355,-500.0,0.00032876,14]
[332699207,1721454657364,-500.0,0.00032876,14]
[332699208,1721454657374,-3179.57,0.00032876,14]
[332699209,1721454657384,-2362.42,0.00032876,14]
[332699210,1721454657395,-500.0,0.00032876,14]
[332699211,1721454657406,-504.0090509,0.00032876,14]
[332699212,1721454657417,-580.26,0.00032876,14]
[332699213,1721454657429,-500.0,0.00032876,14]
[332699214,1721454657439,-1759.26,0.00032876,14]
[332699215,1721454657450,-500.0,0.00032876,14]
[332699216,1721454657461,-500.0,0.00032876,14]
[332699217,1721454657471,-500.0,0.00032876,14]
[332699218,1721454657482,-500.0,0.00032876,14]
[332699219,1721454657492,-500.0,0.00032876,14]
[332699220,1721454657501,-500.6631938,0.00032876,14]
[332699221,1721454657512,-500.0,0.00032876,14]
[332699222,1721454657522,-503.48160624,0.00032876,14]
[332699223,1721454657532,-500.0,0.00032876,14]
[332699224,1721454657543,-2073.67,0.00032876,14]
[332699225,1721454657553,-500.0,0.00032876,14]
[332699226,1721454657563,-597.84,0.00032876,14]
[332699227,1721454657572,-894.23,0.00032876,14]
[332699228,1721454657582,-503.21487002,0.00032876,14]
[332699229,1721454657594,-1991.91,0.00032876,14]
[332699230,1721454657603,-597.17295531,0.00032876,14]
[332699231,1721454657615,-500.0,0.00032876,14]
[332699232,1721454657625,-526.0,0.00032876,14]
[332699233,1721454657635,-500.0,0.00032876,14]
[332699234,1721454657648,-500.88632696,0.00032876,14]
[332699235,1721454657658,-508.99,0.00032876,14]
[332699236,1721454657668,-794.95,0.00032876,14]
[332699237,1721454657677,-503.76642383,0.00032876,14]
[332699238,1721454657687,-2931.11,0.00032876,14]
[332699239,1721454657696,-1061.03,0.00032876,14]
[332699240,1721454657706,-500.0,0.00032876,14]
[332699241,1721454657715,-3299.64,0.00032876,14]
[332699242,1721454657725,-500.0,0.00032876,14]
[332699243,1721454657735,-500.0,0.00032876,14]
[332699244,1721454657744,-554.11342874,0.00032876,14]
[332699245,1721454657753,-553.59,0.00032876,14]
[332699246,1721454657763,-500.0,0.00032876,14]
[332699247,1721454657772,-500.0,0.00032876,14]
[332699248,1721454657781,-501.51349405,0.00032876,14]
[332699249,1721454657790,-655.9,0.00032876,14]
[332699250,1721454657800,-3412.35,0.00032876,14]
[332699251,1721454657809,-2732.87,0.00032876,14]
[332699252,1721454657819,-500.0,0.00032876,14]
[332699253,1721454657828,-1247.29,0.00032876,14]
[332699254,1721454657841,-503.46731941,0.00032876,14]
[332699255,1721454657851,-603.32,0.00032876,14]
[332699256,1721454657860,-500.0,0.00032876,14]
[332699257,1721454657870,-3262.71,0.00032876,14]
[332699258,1721454657879,-500.0,0.00032876,14]
[332699259,1721454657888,-500.0,0.00032876,14]
[332699260,1721454657898,-500.0,0.00032876,14]
[332699261,1721454657907,-500.0,0.00032876,2]
[332699262,1721454657917,-501.36034669,0.00032876,14]
[332699263,1721454657926,-500.0,0.00032876,14]
[332699264,1721454657936,-1103.45,0.00032876,14]
[332699265,1721454657945,-500.0,0.00032876,14]
[332699266,1721454657954,-502.36415762,0.00032876,14]
[332699267,1721454657964,-500.0,0.00032876,14]
[332699268,1721454657973,-500.0,0.00032876,14]
[332699269,1721454657983,-500.0,0.00032876,14]
[332699270,1721454657992,-5572.1,0.00032876,14]
[332699271,1721454658002,-500.0,0.00032876,14]
[332699272,1721454658012,-500.0,0.00032876,14]
[332699273,1721454658022,-500.56963022,0.00032876,14]
[332699274,1721454658031,-500.0,0.00032876,14]
[332699275,1721454658040,-1434.56,0.00032876,14]
[332699276,1721454658050,-637.98,0.00032876,14]
[332699277,1721454658059,-919.87,0.00032876,14]
[332699278,1721454658068,-500.0,0.00032876,14]
[332699279,1721454658077,-1664.52,0.00032876,14]
[332699280,1721454658087,-3644.07,0.00032876,14]
[332699281,1721454658097,-500.0,0.00032876,14]
[332699282,1721454658107,-1022.26,0.00032876,14]
[332699283,1721454658116,-500.27855993,0.00032876,14]
[332699284,1721454658126,-500.0,0.00032876,14]
[332699285,1721454658135,-500.0,0.00032876,14]
[332699286,1721454658144,-500.0,0.00032876,14]
[332699287,1721454658154,-504.0403822,0.00032876,14]
[332699288,1721454658163,-779.94,0.00032876,2]
[332699289,1721454658172,-1034.04,0.00032876,14]
[332699290,1721454658182,-500.0,0.00032876,14]
[332699291,1721454658191,-1720.23,0.00032876,14]
[332699292,1721454658201,-501.93896624,0.00032876,14]
[332699293,1721454658210,-1856.75,0.00032876,14]
[332699294,1721454658219,-754.77,0.00032876,14]
[332699295,1721454658228,-500.0,0.00032876,14]
[332699296,1721454658238,-500.0,0.00032876,14]
[332699297,1721454658247,-502.8330428,0.00032876,14]
[332699298,1721454658257,-4684.73,0.00032876,14]
[332699299,1721454658266,-500.0,0.00032876,14]
[332699300,1721454658275,-1693.75,0.00032876,14]
[332699301,1721454658285,-7474.52,0.00032876,14]
[332699302,1721454658296,-543.00600917,0.00032876,14]
[332699303,1721454658308,-500.0,0.00032876,14]
[332699304,1721454658320,-657.06,0.00032876,14]
[332699305,1721454658331,-500.0,0.00032876,14]
[332699306,1721454658342,-500.0,0.00032876,14]
[332699307,1721454658353,-1870.4,0.00032876,14]
[332699308,1721454658363,-1161.77,0.00032876,14]
[332699309,1721454658373,-2152.41,0.00032876,14]
[332699310,1721454658385,-500.0,0.00032876,14]
[332699311,1721454658396,-500.0,0.00032876,14]
[332699312,1721454658407,-503.25753293,0.00032876,14]
[332699313,1721454658416,-937.28,0.00032876,14]
[332699314,1721454658426,-500.0,0.00032876,14]
[332699315,1721454658437,-701.8,0.00032876,14]
[332699316,1721454658447,-500.52621555,0.00032876,14]
[332699317,1721454658457,-500.0,0.00032876,2]
[332699318,1721454658468,-1075.9,0.00032876,14]
[332699319,1721454658479,-814.24,0.00032876,14]
[332699320,1721454658489,-2205.62,0.00032876,14]
[332699321,1721454658498,-500.0,0.00032876,14]
[332699322,1721454658507,-500.48217703,0.00032876,14]
[332699323,1721454658516,-500.0,0.00032876,14]
[332699324,1721454658526,-500.0,0.00032876,14]
[332699325,1721454658535,-1321.01,0.00032876,14]
[332699326,1721454658544,-500.46610444,0.00032876,14]
[332699327,1721454658554,-504.25751984,0.00032876,14]
[332699328,1721454658563,-500.0,0.00032876,14]
[332699329,1721454658573,-726.47,0.00032876,14]
[332699330,1721454658582,-1940.5,0.00032876,14]
[332699331,1721454658592,-2223.29,0.00032876,14]
[332699332,1721454658601,-500.0,0.00032876,14]
[332699333,1721454658610,-500.0,0.00032876,14]
[332699334,1721454658620,-500.0,0.00032876,14]
[332699335,1721454658629,-156.91156602,0.00032876,14]
[332699336,1721454658638,-2571.47,0.00032876,14]
[332699337,1721454658647,-503.1,0.00032876,14]
[332699338,1721454658657,-500.0,0.00032876,14]
[332699339,1721454658666,-618.24,0.00032876,14]
[332699340,1721454658675,-501.54607076,0.00032876,14]
[332699341,1721454658685,-1012.39,0.00032876,14]
[332699342,1721454658695,-500.0,0.00032876,14]
[332699343,1721454658704,-325.38365532,0.00032876,2]
[332699344,1721454658713,-500.0,0.00032876,14]
[332699345,1721454658722,-500.0,0.00032876,14]
[332699346,1721454658731,-25601.46905496,0.00032913,3]
[332699347,1721454658741,-600.0,0.00033,2]
[332699348,1721454658750,-637.851568,0.00033,14]
[332699349,1721454658759,-152.67109221,0.0003304,7]
[332699350,1721454658770,-500.0,0.0003315,14]
[332699351,1721454658780,-500.0,0.0003315,14]
[332699352,1721454658790,-500.0,0.0003315,14]
[332699353,1721454658799,-500.0,0.0003315,14]
[332699354,1721454658808,-500.0,0.0003315,14]
[332699355,1721454658817,-484.04981705,0.0003315,14]
[332699356,1721454658827,-200.0,0.0003315,14]
[332699357,1721454658836,-500.0,0.0003315,14]
[332699358,1721454658845,-615.91633524,0.0003315,14]
[332699359,1721454658855,-553.00731762,0.0003315,14]
[332699360,1721454658864,-198.37142169,0.0003315,14]
[332699361,1721454658873,-500.0,0.0003315,14]
[332699362,1721454658882,-500.0,0.0003315,14]
[332699363,1721454658891,-500.0,0.0003315,14]
[332699364,1721454658901,-506.82115447,0.0003315,14]
[332699365,1721454658910,-500.0,0.0003315,14]
[332699366,1721454658920,-500.0,0.0003315,14]
[332699367,1721454658929,-500.0,0.0003315,14]
[332699368,1721454658939,-500.0,0.0003315,14]
[332699369,1721454658949,-500.0,0.0003315,14]
[332699370,1721454659234,-500.0,0.0003315,14]
[332699371,1721454659244,-500.0,0.0003315,14]
[332699372,1721454659254,-500.0,0.0003315,14]
[332699373,1721454659264,-678.4,0.0003315,14]
[332699374,1721454659273,-500.0,0.0003315,14]
[332699375,1721454659282,-540.72,0.0003315,14]
[332699376,1721454659291,-313.67366712,0.0003315,14]
[332699377,1721454659301,-500.0,0.0003315,14]
[332699378,1721454659310,-500.0,0.0003315,14]
[332699379,1721454659322,-500.0,0.0003315,14]
[332699380,1721454659331,-500.0,0.0003315,14]
[332699381,1721454659340,-626.62,0.0003315,14]
[332699382,1721454659349,-843.22,0.0003315,14]
[332699383,1721454659359,-500.0,0.0003315,14]
[332699384,1721454659368,-500.0,0.0003315,14]
[332699385,1721454659377,-500.0,0.0003315,14]
[332699386,1721454659387,-500.0,0.0003315,14]
[332699387,1721454659396,-500.0,0.0003315,14]
[332699388,1721454659405,-590.67,0.0003315,14]
[332699389,1721454659415,-581.23,0.0003315,14]
[332699390,1721454659424,-514.12,0.0003315,14]
[332699391,1721454659433,-500.0,0.0003315,14]
[332699392,1721454659443,-500.0,0.0003315,14]
[332699393,1721454659452,-637.85,0.0003315,14]
[332699394,1721454659461,-767.04,0.0003315,14]
[332699395,1721454659471,-500.0,0.0003315,14]
[332699396,1721454659480,-500.0,0.0003315,14]
[332699397,1721454659490,-500.0,0.0003315,14]
[332699398,1721454659499,-500.0,0.0003315,14]
[332699399,1721454659508,-500.0,0.0003315,14]
[332699400,1721454659517,-500.0,0.0003315,14]
[332699401,1721454659527,-500.0,0.0003315,14]
[332699402,1721454659536,-500.0,0.0003315,14]
[332699403,1721454659546,-500.0,0.0003315,14]
[332699404,1721454659555,-500.0,0.0003315,14]
[332699405,1721454659565,-500.0,0.0003315,14]
[332699406,1721454659575,-607.5,0.0003315,14]
[332699407,1721454659584,-694.38,0.0003315,14]
[332699408,1721454659595,-500.0,0.0003315,14]
[332699409,1721454659604,-520.04800539,0.0003315,14]
[332699410,1721454659613,-500.0,0.0003315,14]
[332699411,1721454659623,-504.86254068,0.0003315,14]
[332699412,1721454659632,-500.0,0.0003315,14]
[332699413,1721454659642,-500.0,0.0003315,14]
[332699414,1721454659651,-500.0,0.0003315,14]
[332699415,1721454659660,-500.0,0.0003315,14]
[332699416,1721454659670,-500.0,0.0003315,14]
[332699417,1721454659679,-501.70294206,0.0003315,14]
[332699418,1721454659688,-500.0,0.0003315,14]
[332699419,1721454659698,-500.0,0.0003315,14]
[332699420,1721454659707,-1000.0,0.0003315,2]
[332699421,1721454659716,-500.0,0.0003315,14]
[332699422,1721454659726,-500.0,0.0003315,14]
[332699423,1721454659735,-500.0,0.0003315,14]
[332699424,1721454659744,-500.0,0.0003315,14]
[332699425,1721454659753,-500.0,0.0003315,14]
[332699426,1721454659763,-500.0,0.0003315,14]
[332699427,1721454659772,-500.0,0.0003315,14]
[332699428,1721454659781,-500.0,0.0003315,14]
[332699429,1721454659791,-500.0,0.0003315,14]
[332699430,1721454659800,-530.52,0.0003315,14]
[332699431,1721454659810,-534.63053,0.0003315,14]
[332699432,1721454659819,-463.54167773,0.0003315,14]
[332699433,1721454659829,-500.0,0.0003315,14]
[332699434,1721454659838,-507.45055112,0.0003315,14]
[332699435,1721454659848,-500.0,0.0003315,14]
[332699436,1721454659857,-500.0,0.0003315,14]
[332699437,1721454659867,-500.0,0.0003315,14]
[332699438,1721454659877,-503.81,0.0003315,14]
[332699439,1721454659886,-500.0,0.0003315,14]
[332699440,1721454659896,-536.19,0.0003315,14]
[332699441,1721454659906,-500.0,0.0003315,14]
[332699442,1721454659915,-500.0,0.0003315,14]
[332699443,1721454659925,-500.0,0.0003315,14]
[332699444,1721454659935,-500.0,0.0003315,14]
[332699445,1721454659944,-500.0,0.0003315,14]
[332699446,1721454659955,-500.0,0.0003315,14]
[332699447,1721454659965,-500.0,0.0003315,14]
[332699448,1721454659975,-626.63028795,0.0003315,14]
[332699449,1721454659985,-500.0,0.0003315,14]
[332699450,1721454659994,-505.35575217,0.0003315,14]
[332699451,1721454660004,-500.0,0.0003315,14]
[332699452,1721454660014,-500.0,0.0003315,14]
[332699453,1721454660023,-500.0,0.0003315,14]
[332699454,1721454660033,-602.73,0.0003315,14]
[332699455,1721454660042,-511.57588038,0.0003315,14]
[332699456,1721454660052,-500.0,0.0003315,14]
[332699457,1721454660061,-511.29120307,0.0003315,14]
[332699458,1721454660071,-500.0,0.0003315,14]
[332699459,1721454660080,-694.11,0.0003315,14]
[332699460,1721454660090,-976.13,0.0003315,14]
[332699461,1721454660099,-500.0,0.0003315,14]
[332699462,1721454660109,-586.56,0.0003315,14]
[332699463,1721454660118,-500.0,0.0003315,14]
[332699464,1721454660127,-523.19560553,0.0003315,14]
[332699465,1721454660136,-500.0,0.0003315,14]
[332699466,1721454660146,-956.44,0.0003315,14]
[332699467,1721454660155,-500.0,0.0003315,14]
[332699468,1721454660164,-500.0,0.0003315,14]
[332699469,1721454660175,-546.24,0.0003315,14]
[332699470,1721454660184,-500.0,0.0003315,14]
[332699471,1721454660194,-597.63,0.0003315,14]
[332699472,1721454660204,-500.0,0.0003315,14]
[332699473,1721454660214,-500.0,0.0003315,14]
[332699474,1721454660224,-500.0,0.0003315,14]
[332699475,1721454660234,-500.0,0.0003315,14]
[332699476,1721454660244,-502.72520756,0.0003315,14]
[332699477,1721454660254,-500.0,0.0003315,14]
[332699478,1721454660263,-578.97,0.0003315,14]
[332699479,1721454660273,-501.66860286,0.0003315,14]
[332699480,1721454660284,-500.0,0.0003315,14]
[332699481,1721454660293,-500.0,0.0003315,14]
[332699482,1721454660303,-500.0,0.0003315,14]
[332699483,1721454660314,-500.0,0.0003315,14]
[332699484,1721454660326,-500.0,0.0003315,14]
[332699485,1721454660336,-500.0,0.0003315,14]
[332699486,1721454660346,-182.76150635,0.0003315,14]
[332699487,1721454660357,-513.66897224,0.0003315,14]
[332699488,1721454660366,-500.0,0.0003315,14]
[332699489,1721454660377,-500.0,0.0003315,14]
[332699490,1721454660388,-500.0,0.0003315,14]
[332699491,1721454660402,-500.0,0.0003315,14]
[332699492,1721454660413,-500.0,0.0003315,14]
[332699493,1721454660424,-500.0,0.0003315,14]
[332699494,1721454660435,-500.0,0.0003315,14]
[332699495,1721454660445,-500.0,0.0003315,14]
[332699496,1721454660455,-406.60025521,0.0003315,14]
[332699497,1721454660465,-500.0,0.0003315,14]
[332699498,1721454660474,-500.0,0.0003315,14]
[332699499,1721454660485,-1139.65,0.0003315,14]
[332699500,1721454660494,-500.0,0.0003315,14]
[332699501,1721454660504,-594.81,0.0003315,14]
[332699502,1721454660515,-1160.02,0.0003315,14]
[332699503,1721454660525,-533.4,0.0003315,14]
[332699504,1721454660535,-500.0,0.0003315,14]
[332699505,1721454660544,-500.0,0.0003315,14]
[332699506,1721454660554,-500.0,0.0003315,14]
[332699507,1721454660564,-500.0,0.0003315,14]
[332699508,1721454660574,-1635.03,0.0003315,14]
[332699509,1721454660584,-500.0,0.0003315,14]
[332699510,1721454660597,-500.0,0.0003315,14]
[332699511,1721454660607,-500.0,0.0003315,14]
[332699512,1721454660616,-874.14,0.0003315,14]
[332699513,1721454660628,-500.0,0.0003315,14]
[332699514,1721454660638,-500.0,0.0003315,14]
[332699515,1721454660647,-901.37,0.0003315,14]
[332699516,1721454660657,-500.0,0.0003315,14]
[332699517,1721454660666,-829.22,0.0003315,14]
[332699518,1721454660677,-500.0,0.0003315,14]
[332699519,1721454660687,-500.0,0.0003315,14]
[332699520,1721454660696,-500.0,0.0003315,14]
[332699521,1721454660706,-500.0,0.0003315,14]
[332699522,1721454660716,-1308.18,0.0003315,14]
[332699523,1721454660725,-843.1,0.0003315,14]
[332699524,1721454660734,-505.48186381,0.0003315,14]
[332699525,1721454660744,-500.0,0.0003315,14]
[332699526,1721454660754,-635.71,0.0003315,14]
[332699527,1721454660763,-683.53,0.0003315,14]
[332699528,1721454660773,-500.0,0.0003315,14]
[332699529,1721454660782,-876.85,0.0003315,14]
[332699530,1721454660792,-500.0,0.0003315,14]
[332699531,1721454660802,-935.95,0.0003315,14]
[332699532,1721454660818,-500.0,0.0003315,14]
[332699533,1721454660829,-500.0,0.0003315,14]
[332699534,1721454660845,-500.0,0.0003315,14]
[332699535,1721454660855,-500.0,0.0003315,14]
[332699536,1721454660864,-745.54,0.0003315,14]
[332699537,1721454660874,-500.0,0.0003315,14]
[332699538,1721454660884,-500.0,0.0003315,14]
[332699539,1721454660894,-636.69,0.0003315,14]
[332699540,1721454660904,-500.0,0.0003315,14]
[332699541,1721454660914,-500.0,0.0003315,14]
[332699542,1721454660923,-504.33380837,0.0003315,14]
[332699543,1721454660934,-500.0,0.0003315,14]
[332699544,1721454660944,-500.0,0.0003315,14]
[332699545,1721454660954,-500.0,0.0003315,14]
[332699546,1721454660964,-898.66,0.0003315,14]